bitfinex/quotes_ETHUSD_20250414
["timestamp","ask_amount","ask_price","bid_price","bid_amount"]
[1744589295220,0.02,1603.4,1603.1,9.98043]
[1744589295421,0.02,1603.4,1603.3,0.19046184]
[1744589295615,0.02,1603.4,1603.2,0.19067553]
[1744589295820,0.02,1603.4,1603.0,4.99059]
[1744589295990,5.00954,1603.4,1603.3,0.19046184]
[1744589296191,4.9899,1603.3,1602.9,5.8021]
[1744589296518,0.02,1603.4,1603.1,4.9902]
[1744589297014,0.02,1603.4,1603.2,0.1741005]
[1744589299439,0.02,1603.4,1603.2,0.23646774]
[1744589299823,0.02,1603.4,1603.2,0.1741005]
[1744589300026,5.00946,1603.4,1603.2,0.1741005]
[1744589300227,5.00946,1603.4,1603.0,4.99048]
[1744589300416,5.00946,1603.4,1603.3,0.17369934]
[1744589300619,5.00946,1603.4,1603.2,4.98997]
[1744589300620,0.02,1603.4,1603.2,4.98997]
[1744589300926,0.02,1603.4,1603.3,5.22503006]
[1744589301126,0.02,1603.4,1603.3,5.94276471]
[1744589301632,5.00939,1603.4,1603.3,0.17296471]
[1744589301830,5.590919,1603.4,1603.3,0.17296471]
[1744589302010,5.590919,1603.4,1603.0,4.99055]
[1744589302204,0.02,1603.4,1603.3,5.14796882]
[1744589302404,0.02,1603.4,1603.3,6.3821467]
[1744589302605,0.02,1603.4,1603.3,5.92774239]
[1744589302809,0.02,1603.4,1603.3,5.99009226]
[1744589303331,0.02,1603.4,1603.3,6.47774239]
[1744589303627,0.02,1603.4,1603.3,7.73320309]
[1744589303810,1e-05,1603.4,1603.3,8.00193879]
[1744589304537,0.005,1603.8,1603.7,4.98846]
[1744589304729,0.005,1603.8,1603.6,4.98864]
[1744589304922,0.005,1603.8,1603.7,0.15712921]
[1744589305098,0.005,1603.8,1603.7,0.21947642]
[1744589305294,0.005,1603.8,1603.7,6.22760706]
[1744589305498,0.005,1603.8,1603.7,1.17679985]
[1744589306346,0.005,1603.8,1603.7,0.15712921]
[1744589306514,4.99315,1603.8,1603.7,0.15712921]
[1744589306848,4.99315,1603.8,1603.7,0.15704763]
[1744589307057,4.99315,1603.8,1603.4,10.75863]
[1744589307207,0.005,1603.8,1603.7,0.15704763]
[1744589307516,0.005,1603.8,1603.6,4.98873]
[1744589307712,0.005,1603.8,1603.7,0.65600221]
[1744589308119,0.005,1603.8,1603.7,0.71834868]
[1744589308351,0.005,1603.8,1603.7,5.70680868]
[1744589308650,0.005,1603.8,1603.7,0.65600221]
[1744589309221,0.005,1603.8,1603.7,0.15712921]
[1744589309518,0.005,1603.8,1603.6,4.9886]
[1744589309734,0.005,1603.8,1603.7,0.15712921]
[1744589309916,4.99315,1603.8,1603.7,0.15712921]
[1744589310106,4.99315,1603.8,1603.4,10.75857]
[1744589310303,5.76785,1603.8,1603.7,0.15712921]
[1744589310538,9.97788,1603.6,1603.2,5.82045]
[1744589310742,4.98953,1603.4,1603.0,5.82118]
[1744589310941,4.98978,1603.3,1602.9,4.99089]
[1744589311141,4.99002,1603.2,1603.0,0.499089]
[1744589311550,4.99033,1603.1,1602.8,5.82182]
[1744589311960,4.98972,1603.3,1602.8,0.8306]
[1744589312123,4.98972,1603.3,1602.9,5.05311777]
[1744589312448,4.99004,1603.2,1602.8,4.99123]
[1744589312669,9.98092,1603.1,1602.9,0.06237534]
[1744589312812,4.99038,1603.1,1602.8,0.561534]
[1744589313150,4.99038,1603.1,1602.8,0.499154]
[1744589313546,4.99038,1603.1,1602.7,4.99154]
[1744589313713,7.912,1603.0,1602.3,4.99277]
[1744589313909,4.9916,1602.7,1602.3,4.99277]
[1744589314235,4.9916,1602.7,1602.3,9.98542]
[1744589314450,9.98344,1602.7,1602.4,0.998542]
[1744589314746,4.9916,1602.7,1602.5,0.06239488]
[1744589314942,4.9916,1602.7,1602.3,4.99265]
[1744589315136,5.77288,1602.6,1602.2,5.80132]
[1744589315334,10.76498,1602.6,1602.2,5.80132]
[1744589315539,5.77288,1602.6,1602.3,0.64253079]
[1744589315747,4.99225,1602.5,1602.3,0.64253079]
[1744589316048,4.99225,1602.5,1602.1,4.99326]
[1744589316414,4.99225,1602.5,1602.2,0.06240425]
[1744589316613,4.99225,1602.5,1602.2,5.05553425]
[1744589316813,0.781,1602.9,1602.5,4.9919]
[1744589317046,0.781,1602.9,1602.6,5.49091]
[1744589317745,0.781,1602.9,1602.6,0.49919]
[1744589317944,4.99153,1602.8,1602.5,0.06238681]
[1744589318149,5.77199,1602.9,1602.5,0.06238681]
[1744589318518,5.77199,1602.9,1602.5,5.05446681]
[1744589319036,4.99137,1602.8,1602.4,4.99247]
[1744589319252,4.99137,1602.8,1602.4,9.98481]
[1744589319461,5.772,1602.9,1602.5,6.05300286]
[1744589319638,4.99127,1602.8,1602.5,6.05300286]
[1744589319839,4.99164,1602.7,1602.5,1.06087286]
[1744589320039,4.99164,1602.7,1602.5,0.998481]
[1744589320241,5.77299,1602.6,1602.2,4.99296]
[1744589320452,4.99222,1602.5,1602.2,5.05536546]
[1744589320651,4.99222,1602.5,1602.2,4.99296]
[1744589320825,9.98459,1602.5,1602.2,0.998636]
[1744589321028,4.99222,1602.5,1602.2,1.06104151]
[1744589321233,9.98459,1602.5,1602.2,1.06104151]
[1744589321530,9.98459,1602.5,1602.2,0.998636]
[1744589321732,9.98541,1602.4,1602.0,4.99374]
[1744589321932,9.98541,1602.4,1602.1,4.99344]
[1744589321933,4.99268,1602.4,1602.1,4.99344]
[1744589322655,0.781,1602.8,1602.5,4.99201]
[1744589322825,4.99172,1602.7,1602.3,10.79368]
[1744589323220,4.99172,1602.7,1602.4,4.99249]
[1744589323552,4.99172,1602.7,1602.5,0.499249]
[1744589323918,4.99095,1602.9,1602.5,0.499249]
[1744589324118,4.99131,1602.8,1602.3,5.8009]
[1744589324352,5.77131,1603.2,1602.9,4.99084]
[1744589324551,5.77131,1603.2,1602.9,5.05321727]
[1744589324853,5.77131,1603.2,1603.0,0.21690524]
[1744589325055,10.76152,1603.2,1603.0,0.15452879]
[1744589325230,5.77121,1603.2,1603.0,0.15452879]
[1744589325554,5.77121,1603.2,1602.8,9.98232]
[1744589325755,4.99047,1603.1,1602.9,0.998232]
[1744589325965,4.99064,1603.0,1602.9,0.15493009]
[1744589326337,4.99064,1603.0,1602.7,0.06238814]
[1744589326532,4.99064,1603.0,1602.9,0.15055812]
[1744589326733,4.99033,1603.1,1602.7,5.05388814]
[1744589326987,4.99064,1603.0,1602.9,0.15076219]
[1744589327256,4.992,1602.6,1602.2,4.9931]
[1744589327459,4.99221,1602.5,1602.1,13.03]
[1744589327628,0.8058,1602.5,1602.3,0.15301628]
[1744589328663,5.79801,1602.5,1602.3,0.15301628]
[1744589328966,6.377891,1602.5,1602.3,0.15301628]
[1744589329260,10.79053,1602.5,1602.1,5.05575891]
[1744589329479,10.79053,1602.5,1602.4,0.15284327]
[1744589329675,10.79053,1602.5,1602.1,5.05575891]
[1744589330036,10.79053,1602.5,1602.2,0.15392449]
[1744589330664,4.99282,1602.3,1602.2,0.15392449]
[1744589330864,4.99282,1602.3,1601.9,5.75766]
[1744589331052,9.98582,1602.3,1602.2,0.1540266]
[1744589331258,4.99282,1602.3,1602.2,0.1540266]
[1744589331467,9.98536,1602.4,1602.0,4.99359]
[1744589331637,9.98536,1602.4,1602.2,0.15715018]
[1744589332007,9.98536,1602.4,1602.0,4.99359]
[1744589332278,5.79809,1602.5,1601.9,2.566099]
[1744589332445,4.99286,1602.3,1602.1,0.15736413]
[1744589332768,4.99313,1602.2,1602.1,0.15736413]
[1744589332977,9.98649,1602.2,1601.8,4.99421]
[1744589333175,9.98649,1602.2,1602.1,0.15862232]
[1744589333350,9.98649,1602.2,1601.8,4.99421]
[1744589333550,4.99313,1602.2,1602.1,0.15862232]
[1744589333748,4.99313,1602.2,1601.8,6.069456]
[1744589334274,4.99313,1602.2,1601.9,0.15905038]
[1744589334572,4.99313,1602.2,1601.9,5.15308038]
[1744589334877,4.99313,1602.2,1602.0,0.15850932]
[1744589335172,4.99313,1602.2,1601.8,11.063736]
[1744589335374,4.99313,1602.2,1602.1,0.15837707]
[1744589335570,4.99313,1602.2,1601.8,11.063736]
[1744589335734,4.99313,1602.2,1602.1,0.15837707]
[1744589335938,4.99313,1602.2,1601.8,11.063736]
[1744589336138,5.79804,1602.5,1602.1,0.15841795]
[1744589336376,10.79046,1602.5,1602.1,4.99333]
[1744589336677,4.99254,1602.4,1602.2,0.15820397]
[1744589337443,4.99254,1602.4,1602.1,5.05574092]
[1744589337739,4.99254,1602.4,1602.2,0.15840833]
[1744589338870,0.8058,1602.5,1602.3,4.99262]
[1744589339174,9.98279,1602.8,1602.4,4.99236]
[1744589339468,4.99168,1602.7,1602.5,0.16309924]
[1744589339674,4.99188,1602.6,1602.3,5.75638]
[1744589339874,4.99225,1602.5,1602.2,0.52141492]
[1744589340044,4.99225,1602.5,1602.1,5.75689]
[1744589340045,4.99256,1602.4,1602.1,5.75689]
[1744589340376,5.79805,1602.5,1602.1,10.81260664]
[1744589340575,5.79805,1602.5,1602.1,5.81929664]
[1744589340754,4.99325,1602.2,1601.9,4.99402]
[1744589341072,4.99325,1602.2,1601.9,6.069207]
[1744589341672,4.99291,1602.3,1601.9,11.063117]
[1744589341876,9.98589,1602.3,1601.9,6.069097]
[1744589342173,5.79804,1602.5,1601.9,1.075187]
[1744589342174,4.99322,1602.2,1601.9,1.075187]
[1744589342473,4.99288,1602.3,1601.9,6.069237]
[1744589342678,0.8058,1602.5,1602.2,4.99301]
[1744589342879,5.79612,1602.7,1602.2,0.86070627]
[1744589343247,5.79612,1602.7,1602.3,4.99263]
[1744589343647,5.79612,1602.7,1602.4,5.05489849]
[1744589343975,4.99137,1602.8,1602.6,0.7983]
[1744589344176,59.30288,1603.1,1602.7,4.99136]
[1744589344357,4.9907,1603.0,1602.6,5.570916]
[1744589344676,4.99077,1603.0,1602.7,0.06238343]
[1744589344879,4.9895,1603.4,1602.7,5.85224645]
[1744589345175,17.25379,1603.6,1603.2,4.98983]
[1744589345378,7.276,1603.6,1603.3,4.98949]
[1744589345584,4.98855,1603.7,1603.3,9.97904]
[1744589345875,4.98923,1603.5,1603.2,0.06236819]
[1744589346186,0.005,1603.8,1603.2,5.0522686]
[1744589346187,4.98878,1603.6,1603.2,5.0522686]
[1744589346393,4.98878,1603.6,1603.2,10.0421186]
[1744589346560,4.98878,1603.6,1603.2,5.0522186]
[1744589346758,0.005,1603.8,1603.2,0.0623686]
[1744589346967,0.005,1603.8,1603.6,4.9886]
[1744589347166,0.005,1603.8,1603.6,10.61822059]
[1744589347371,0.005,1603.8,1603.7,4.98846]
[1744589347852,0.005,1603.8,1603.6,0.57869]
[1744589348294,0.005,1603.8,1603.6,5.629633]
[1744589348465,0.005,1603.8,1603.6,5.56728]
[1744589348756,0.005,1603.8,1603.5,0.7983]
[1744589348957,0.005,1603.8,1603.6,4.98859]
[1744589349198,0.005,1603.8,1603.7,4.98846]
[1744589349366,0.005,1603.8,1603.6,4.98859]
[1744589349549,0.005,1603.8,1603.6,9.97724]
[1744589349748,0.005,1603.8,1603.7,6.04853158]
[1744589349951,0.005,1603.8,1603.7,6.04852473]
[1744589350185,0.005,1603.8,1603.7,6.59852473]
[1744589350390,0.005,1603.8,1603.7,7.39682473]
[1744589351197,0.005,1603.8,1603.7,6.84682473]
[1744589351409,0.005,1603.8,1603.7,5.78676]
[1744589351684,0.005,1603.8,1603.6,4.98874]
[1744589351851,0.005,1603.8,1603.7,5.05080641]
[1744589352860,0.005,1603.8,1603.7,4.98846]
[1744589353184,0.005,1603.8,1603.7,5.05080265]
[1744589353383,0.005,1603.8,1603.6,4.98874]
[1744589353688,0.005,1603.8,1603.7,5.05080722]
[1744589353988,0.005,1603.8,1603.7,0.06234722]
[1744589354188,0.005,1603.8,1603.7,5.05080722]
[1744589354483,0.005,1603.8,1603.7,5.17271899]
[1744589354687,0.005,1603.8,1603.7,6.18884889]
[1744589354989,0.005,1603.8,1603.7,14.70780167]
[1744589355199,0.005,1603.8,1603.7,15.16376494]
[1744589355409,0.005,1603.8,1603.7,14.15780167]
[1744589356213,0.005,1603.8,1603.7,17.70780167]
[1744589357701,0.005,1603.8,1603.7,18.17348717]
[1744589358060,0.4003441,1604.2,1604.1,5.53722]
[1744589358263,0.4003441,1604.2,1604.1,22.91069832]
[1744589358465,0.4003441,1604.2,1604.1,22.8483742]
[1744589358661,0.4003441,1604.2,1604.1,15.0663742]
[1744589358865,0.4003441,1604.2,1604.1,12.0663742]
[1744589359090,0.4003441,1604.2,1604.1,13.83407514]
[1744589359406,0.4003441,1604.2,1604.1,0.1208542]
[1744589360000,0.4003441,1604.2,1604.1,4.98722]
[1744589360195,0.4003441,1604.2,1604.1,5.10823731]
[1744589360914,0.4003441,1604.2,1604.1,0.18334459]
[1744589361075,0.4003441,1604.2,1604.1,0.12101731]
[1744589361272,0.4003441,1604.2,1603.9,4.98769]
[1744589361475,0.4003441,1604.2,1604.0,0.18327824]
[1744589361922,0.4003441,1604.2,1604.0,5.17065824]
[1744589362520,0.4003441,1604.2,1604.0,0.18327824]
[1744589362706,0.4003441,1604.2,1604.0,0.12094524]
[1744589363015,4.98722,1604.1,1604.0,0.12094524]
[1744589363343,4.98722,1604.1,1603.6,9.97734]
[1744589363504,4.98766,1604.0,1603.7,5.986144]
[1744589363705,4.98722,1604.1,1603.8,0.06234275]
[1744589364012,4.98722,1604.1,1603.8,5.05043275]
[1744589364215,0.4003441,1604.2,1603.9,0.8088]
[1744589364398,0.02,1604.4,1604.3,4.98659]
[1744589364611,0.02,1604.4,1604.3,6.04624079]
[1744589365012,0.02,1604.4,1604.3,6.59624079]
[1744589365187,0.02,1604.4,1604.3,7.40504079]
[1744589365394,0.02,1604.4,1604.3,6.792726]
[1744589365618,0.02,1604.4,1604.2,4.98677]
[1744589365816,0.02,1604.4,1604.2,4.98681]
[1744589366095,0.02,1604.4,1604.2,5.04913298]
[1744589366294,0.02,1604.4,1604.3,4.98659]
[1744589367647,0.02,1604.4,1604.3,5.04891021]
[1744589367813,0.02,1604.4,1604.3,6.55115923]
[1744589368145,0.02,1604.4,1604.3,7.90995923]
[1744589368346,0.02,1604.4,1604.3,7.29763902]
[1744589368548,0.02,1604.4,1604.3,6.48883902]
[1744589368749,0.02,1604.4,1604.2,4.98677]
[1744589369138,0.02,1604.4,1604.2,5.10276572]
[1744589369343,0.02,1604.4,1604.2,0.11599572]
[1744589370250,0.02,1604.4,1604.2,5.16516485]
[1744589370864,0.02,1604.4,1604.3,4.98659]
[1744589371052,0.02,1604.4,1604.3,6.00176548]
[1744589371356,0.02,1604.4,1604.3,6.11839195]
[1744589372534,0.02,1604.4,1604.3,6.18070943]
[1744589373969,0.02,1604.4,1604.3,6.43829337]
[1744589374162,0.02,1604.4,1604.3,6.78069092]
[1744589374469,0.02,1604.4,1604.3,16.37406445]
[1744589374762,0.02,1604.4,1604.3,16.31174697]
[1744589375156,0.02,1604.4,1604.3,16.77166034]
[1744589375878,0.02,1604.4,1604.3,12.76174697]
[1744589376063,0.02,1604.4,1604.3,11.74657149]
[1744589376369,0.02,1604.4,1604.3,0.34239755]
[1744589376674,5.82638,1604.4,1604.3,0.34239755]
[1744589376965,5.82638,1604.4,1603.9,0.06233819]
[1744589377269,4.9867,1604.3,1603.9,4.98767]
[1744589377470,4.9867,1604.3,1604.0,5.24594717]
[1744589377766,4.9867,1604.3,1604.0,4.98748]
[1744589379647,4.9867,1604.3,1603.9,5.49267085]
[1744589379852,4.9867,1604.3,1604.0,5.33141261]
[1744589380366,4.9867,1604.3,1604.0,0.34393261]
[1744589380574,9.97352,1604.3,1603.9,5.49267085]
[1744589380961,9.9734,1604.3,1603.9,5.55515943]
[1744589381160,4.98661,1604.3,1603.9,10.48052085]
[1744589381371,4.98661,1604.3,1603.9,10.54285943]
[1744589381675,7.248,1604.4,1603.6,0.8112]
[1744589381975,5.80732,1604.1,1604.0,0.25875246]
[1744589382405,4.98794,1603.9,1603.5,9.97803]
[1744589382566,9.976,1603.9,1603.5,4.98895]
[1744589382898,9.976,1603.9,1603.5,6.067899]
[1744589383066,0.8201,1603.8,1603.5,6.067899]
[1744589383264,4.98847,1603.7,1603.3,4.98966]
[1744589383468,4.98888,1603.6,1603.2,4.98996]
[1744589383966,0.8201,1603.5,1602.8,0.8112]
[1744589384198,0.8201,1603.5,1602.7,4.99141]
[1744589384199,4.99034,1603.1,1602.7,4.99141]
[1744589384501,9.9809,1603.1,1602.8,0.34460242]
[1744589384706,0.8201,1603.2,1602.8,0.34460242]
[1744589384707,4.99095,1602.9,1602.8,0.34460242]
[1744589385014,5.81105,1602.9,1602.8,0.34460242]
[1744589385582,4.99136,1602.8,1602.5,5.32381367]
[1744589385900,4.99136,1602.8,1602.5,6.35544504]
[1744589385901,9.98287,1602.8,1602.5,6.35544504]
[1744589386204,0.8201,1602.9,1602.6,4.99174]
[1744589386704,5.8111,1602.9,1602.7,0.11847637]
[1744589386901,5.8111,1602.9,1602.5,5.05447032]
[1744589387103,0.8201,1602.9,1602.8,0.12898246]
[1744589387329,0.8201,1602.9,1602.6,4.99186]
[1744589387495,0.8201,1602.9,1602.8,0.12898246]
[1744589387689,0.8201,1602.9,1602.6,5.99649303]
[1744589387903,0.8201,1602.9,1602.7,0.12919636]
[1744589388329,5.81108,1602.9,1602.7,0.12919636]
[1744589388927,5.81108,1602.9,1602.5,4.99207]
[1744589389119,5.81108,1602.9,1602.8,0.12920715]
[1744589389299,4.99128,1602.8,1602.5,5.05446527]
[1744589389501,4.99128,1602.8,1602.6,0.12959413]
[1744589389726,4.99128,1602.8,1602.4,5.054898]
[1744589389918,4.99128,1602.8,1602.7,0.12965712]
[1744589390106,4.99158,1602.7,1602.4,1.0671678]
[1744589390422,4.99158,1602.7,1602.4,4.99248]
[1744589390718,7.319,1602.8,1602.4,9.98484]
[1744589390927,12.3103,1602.8,1602.4,10.983368]
[1744589391313,7.319,1602.8,1602.5,4.99217]
[1744589391714,4.99195,1602.6,1602.2,4.9931]
[1744589391892,0.8312,1602.6,1602.3,0.0624065]
[1744589392224,0.8312,1602.8,1602.6,4.99172]
[1744589392422,0.8312,1602.8,1602.6,9.98345]
[1744589392622,0.8312,1603.0,1602.7,5.989915]
[1744589392923,4.99004,1603.2,1603.0,4.99053]
[1744589392924,0.8312,1603.2,1603.0,4.99053]
[1744589393496,0.8312,1603.2,1603.0,4.9905]
[1744589394423,4.99003,1603.2,1602.8,5.77961]
[1744589394590,4.99003,1603.2,1602.8,5.6689955]
[1744589394811,9.9797,1603.3,1602.9,4.99086]
[1744589395008,4.99002,1603.2,1602.8,5.6689955]
[1744589395206,4.98971,1603.3,1602.9,4.9908]
[1744589395540,9.97962,1603.3,1602.9,4.9908]
[1744589395835,4.98971,1603.3,1602.9,6.11915957]
[1744589396018,4.98971,1603.3,1602.9,11.10993957]
[1744589396220,4.98971,1603.3,1603.0,0.12568193]
[1744589396740,4.98971,1603.3,1602.9,11.04756055]
[1744589396920,4.98971,1603.3,1603.1,0.12546816]
[1744589397124,4.98971,1603.3,1602.9,11.04756055]
[1744589397431,4.98971,1603.3,1603.2,0.12324374]
[1744589397607,4.98971,1603.3,1603.0,4.99063]
[1744589397810,4.98971,1603.3,1603.0,6.09536906]
[1744589398110,4.98971,1603.3,1603.1,0.12304919]
[1744589398644,5.82121,1603.2,1603.1,0.12304919]
[1744589399146,10.81148,1603.2,1603.1,0.12304914]
[1744589399345,4.99035,1603.1,1602.7,9.98283]
[1744589399545,9.98086,1603.1,1602.7,6.068493]
[1744589399716,4.99035,1603.1,1602.7,11.12231098]
[1744589400045,4.99035,1603.1,1602.8,4.99123]
[1744589400340,0.8312,1603.2,1603.0,4.99049]
[1744589400718,17.29892,1603.4,1603.1,4.99033]
[1744589400719,13.14062,1603.4,1603.1,4.99033]
[1744589401050,9.97996,1603.3,1602.9,4.99085]
[1744589401442,4.98997,1603.3,1603.0,4.99056]
[1744589401611,9.97985,1603.3,1602.9,9.98167]
[1744589401814,4.99021,1603.2,1602.8,4.99121]
[1744589402061,0.83594253,1603.3,1602.8,7.9054]
[1744589402221,5.81805,1604.3,1603.2,4.99001]
[1744589402428,0.32537292,1604.2,1604.0,4.98751]
[1744589402743,0.8312,1604.3,1604.0,4.9874]
[1744589402942,0.8312,1604.3,1604.1,4.98711]
[1744589403115,4.98696,1604.2,1603.9,4.98782]
[1744589403315,0.8312,1604.3,1603.8,0.06234367]
[1744589403563,0.02,1604.4,1604.2,4.98675]
[1744589404045,0.02,1604.4,1604.1,4.98721]
[1744589404212,5.0063,1604.4,1604.0,4.98747]
[1744589404417,5.0063,1604.4,1604.0,9.97483]
[1744589404648,5.0063,1604.4,1604.1,4.9872]
[1744589405047,0.02,1604.4,1604.1,4.9872]
[1744589405246,0.02,1604.4,1604.2,0.1160857]
[1744589405617,5.0063,1604.4,1604.2,0.1160857]
[1744589406458,8.77499,1604.3,1604.2,0.1160857]
[1744589406766,5.77702,1603.7,1603.2,4.98986]
[1744589406912,10.76568,1603.7,1603.3,4.9897]
[1744589407117,5.77702,1603.7,1603.4,4.98938]
[1744589407446,0.7884,1603.7,1603.3,5.0520656]
[1744589407626,0.7884,1603.7,1603.3,4.9897]
[1744589407627,5.77699,1603.7,1603.3,4.9897]
[1744589407819,0.7884,1603.7,1603.3,4.98951]
[1744589408013,5.77688,1603.7,1603.4,4.98935]
[1744589408739,5.77688,1603.7,1603.3,4.98951]
[1744589409751,10.76554,1603.7,1603.3,4.98951]
[1744589410056,5.77688,1603.7,1603.3,4.98951]
[1744589410255,10.76556,1603.7,1603.3,4.98951]
[1744589410445,4.9891,1603.5,1603.1,9.98049]
[1744589410748,4.9891,1603.5,1603.1,9.98032]
[1744589410950,4.98883,1603.6,1603.2,4.9899]
[1744589411127,4.98916,1603.5,1603.1,4.99024]
[1744589411449,4.98916,1603.5,1603.1,9.98043]
[1744589411649,4.98916,1603.5,1603.1,6.069283]
[1744589411848,0.7884,1603.6,1602.9,4.99091]
[1744589412146,5.77839,1603.3,1603.0,4.99061]
[1744589412354,5.77839,1603.3,1602.9,4.99076]
[1744589412736,5.77839,1603.3,1602.9,5.05313877]
[1744589413054,10.76833,1603.3,1602.9,5.05313877]
[1744589413256,5.77834,1603.3,1602.9,11.06705588]
[1744589413475,5.77834,1603.3,1602.9,6.13862466]
[1744589413755,4.99002,1603.2,1602.9,6.07624588]
[1744589414130,9.98024,1603.2,1602.9,1.08548588]
[1744589414462,9.98234,1602.9,1602.5,4.99219]
[1744589414659,0.7884,1602.7,1602.4,4.9925]
[1744589414840,5.77999,1602.7,1602.3,4.99273]
[1744589415166,4.99188,1602.6,1602.1,0.8105]
[1744589415328,4.9922,1602.5,1602.1,4.99343]
[1744589415528,4.9922,1602.5,1602.1,4.99326]
[1744589415758,9.98459,1602.5,1602.1,4.99326]
[1744589416148,4.99251,1602.4,1602.0,4.99372]
[1744589416452,5.78124,1602.3,1602.0,4.99372]
[1744589416626,5.78124,1602.3,1602.0,5.574142]
[1744589416828,5.78124,1602.3,1601.7,17.78148367]
[1744589416829,0.7884,1602.3,1601.7,11.12896367]
[1744589417029,4.99377,1602.0,1601.7,5.32381367]
[1744589417240,4.99329,1602.2,1601.8,4.99421]
[1744589417577,0.7884,1602.3,1602.1,4.99344]
[1744589417772,5.78131,1602.3,1601.9,4.99392]
[1744589418079,9.98665,1602.2,1601.8,4.99435]
[1744589418370,9.98665,1602.2,1601.7,5.05710175]
[1744589418575,4.99379,1602.0,1601.6,4.9949]
[1744589418777,4.99379,1602.0,1601.6,4.99483]
[1744589418989,4.99379,1602.0,1601.7,0.499483]
[1744589419776,4.99379,1602.0,1601.6,4.99483]
[1744589420271,0.7884,1602.3,1601.9,4.99381]
[1744589420477,5.78133,1602.3,1601.9,4.99381]
[1744589420674,4.99314,1602.2,1601.8,4.99425]
[1744589420989,4.99314,1602.2,1601.7,4.99467]
[1744589421161,4.99314,1602.2,1601.8,4.99426]
[1744589421361,9.98646,1602.2,1601.8,4.99426]
[1744589421579,4.99314,1602.2,1601.8,4.99421]
[1744589421856,9.9873,1602.1,1601.9,0.13954498]
[1744589422088,4.99357,1602.1,1601.9,0.13954498]
[1744589422289,4.99376,1602.0,1601.7,4.99466]
[1744589422488,4.99376,1602.0,1601.6,5.05742798]
[1744589422689,5.81698,1601.9,1601.5,4.99515]
[1744589422888,4.99449,1601.8,1601.4,4.99561]
[1744589423108,9.98906,1601.8,1601.4,4.99561]
[1744589423661,4.99449,1601.8,1601.4,9.99107]
[1744589423857,4.99449,1601.8,1601.4,4.99546]
[1744589424062,0.8227,1601.5,1601.1,5.0165]
[1744589424295,5.81814,1601.5,1601.1,10.0129]
[1744589424495,5.81814,1601.5,1601.2,4.99612]
[1744589425200,5.81814,1601.5,1601.1,5.0164]
[1744589425382,4.99563,1601.4,1601.1,0.02]
[1744589425560,4.99563,1601.4,1601.1,5.01644]
[1744589425769,0.8227,1601.5,1601.3,4.99582]
[1744589426009,12.4608,1601.7,1601.3,4.99582]
[1744589426010,18.27839,1601.7,1601.3,4.99582]
[1744589426912,18.27839,1601.7,1601.3,4.99579]
[1744589426913,18.27838,1601.7,1601.3,4.99579]
[1744589427210,18.27839,1601.7,1601.3,4.99579]
[1744589427634,8.2887,1601.7,1601.4,0.1241223]
[1744589427795,0.8227,1601.7,1601.5,4.99521]
[1744589427986,0.8227,1601.7,1601.5,10.11427714]
[1744589428515,0.8227,1601.7,1601.5,5.11906714]
[1744589428716,5.81753,1601.7,1601.5,0.12386714]
[1744589428896,5.81753,1601.7,1601.3,9.99172]
[1744589429217,5.81753,1601.7,1601.4,0.1255016]
[1744589429415,10.81243,1601.7,1601.4,0.1255016]
[1744589429723,11.893566,1601.7,1601.4,0.1255016]
[1744589429898,6.898636,1601.7,1601.4,0.1255016]
[1744589430099,4.99511,1601.6,1601.4,0.1255016]
[1744589431135,0.8127,1601.9,1601.7,4.99457]
[1744589431422,0.8127,1601.9,1601.8,0.12443137]
[1744589431783,0.8127,1601.9,1601.8,0.44562915]
[1744589433151,5.80676,1601.9,1601.8,0.44562915]
[1744589433452,5.80676,1601.9,1601.5,9.99044]
[1744589433633,5.80676,1601.9,1601.8,0.4095882]
[1744589433938,5.80676,1601.9,1601.8,0.40936459]
[1744589433939,0.8127,1601.9,1601.8,0.40936459]
[1744589434144,0.8127,1601.9,1601.6,4.99487]
[1744589434346,0.8127,1601.9,1601.7,0.40959876]
[1744589434548,5.80679,1601.9,1601.7,0.40959876]
[1744589434746,10.80103,1601.9,1601.7,0.40959876]
[1744589434918,5.80679,1601.9,1601.5,4.99518]
[1744589435118,5.80679,1601.9,1601.6,5.40460351]
[1744589436152,0.8127,1601.9,1601.7,4.99468]
[1744589436344,65.97849,1602.1,1601.7,0.40968818]
[1744589436345,61.7439,1602.1,1601.7,0.40968818]
[1744589436552,61.7439,1602.1,1601.8,4.99411]
[1744589436727,61.7439,1602.1,1601.8,10.39817955]
[1744589437048,61.7439,1602.1,1601.8,5.40392955]
[1744589437248,66.73745,1602.1,1601.8,5.40392955]
[1744589437825,4.99406,1601.9,1601.8,0.40981955]
[1744589438030,4.9947,1601.7,1601.4,4.99558]
[1744589438222,4.9944,1601.8,1601.4,9.99107]
[1744589438425,5.75303,1601.9,1601.6,4.99488]
[1744589438730,11.821945,1601.9,1601.5,9.9905]
[1744589438931,10.74726,1601.9,1601.5,4.99521]
[1744589439457,0.7589,1601.9,1601.6,4.99487]
[1744589439747,5.75301,1601.9,1601.5,4.99528]
[1744589440051,0.7589,1601.9,1601.6,4.99485]
[1744589440348,0.7589,1601.9,1601.5,4.99521]
[1744589440349,10.74719,1601.9,1601.5,4.99521]
[1744589440553,9.98903,1601.8,1601.4,9.99083]
[1744589440856,4.99438,1601.8,1601.4,9.99083]
[1744589441054,4.99438,1601.8,1601.5,4.99529]
[1744589441225,11.822089,1601.9,1601.5,4.99529]
[1744589441551,11.822089,1601.9,1601.5,4.99516]
[1744589442768,11.822089,1601.9,1601.5,9.99034]
[1744589442968,11.822089,1601.9,1601.5,4.99516]
[1744589443873,0.7589,1602.1,1601.6,0.06244211]